fUSD/lending_fUSD_20240820
["ID","MTS","AMOUNT","RATE_DAILY","PERIOD"]
[335326248,1724113844605,-1498.77,0.00010978,2]
[335326249,1724113844615,-2480.96,0.00010978,2]
[335326250,1724113844624,-3298.15,0.00010978,2]
[335326251,1724113844641,-673.46,0.00010978,2]
[335326252,1724113844653,-514.99,0.00010978,2]
[335326253,1724113844662,-500.0,0.00010978,2]
[335326254,1724113844672,-500.0,0.00010978,2]
[335326255,1724113844682,-14223.55,0.00010978,2]
[335326256,1724113844692,-830.27,0.00010978,2]
[335326257,1724113844702,-345.95613119,0.00010978,2]
[335326258,1724113844714,-500.0,0.00010978,2]
[335326259,1724113844723,-2601.13,0.00010978,2]
[335326260,1724113844733,-500.0,0.00010978,2]
[335326261,1724113844743,-2650.3,0.00010978,2]
[335326262,1724113844751,-3135.93,0.00010978,2]
[335326263,1724113844761,-500.0,0.00010978,2]
[335326264,1724113844771,-1479.81660602,0.00010978,2]
[335326265,1724113844802,-3313.60911296,0.00010978,2]
[335326266,1724113844814,-526.02,0.00010978,2]
[335326267,1724113844825,-624.39428102,0.00010978,2]
[335326268,1724113844836,-500.0,0.00010978,2]
[335326269,1724113844849,-500.0,0.00010978,2]
[335326270,1724113844859,-3585.67,0.00010978,2]
[335326271,1724113844870,-11657.17067593,0.00010978,2]
[335326305,1724113845754,-304.52680998,0.00010978,2]
[335326307,1724113845930,-1191.44251409,0.00010978,2]
[335326308,1724113845941,-595.87,0.00010978,2]
[335326309,1724113845951,-500.0,0.00010979,2]
[335326310,1724113845962,-300.09116622,0.00010979,2]
[335326311,1724113845972,-401.62337545,0.00010979,2]
[335326312,1724113845982,-215.14458037,0.00010983,2]
[335326313,1724113845993,-399.54131242,0.00010983,2]
[335326314,1724113846003,-500.0,0.00010983,2]
[335326315,1724113846012,-500.0,0.00010983,2]
[335326317,1724113846168,-500.0,0.00010983,2]
[335326319,1724113846178,-500.0,0.00010983,2]
[335326320,1724113846188,-1009.53,0.00010983,2]
[335326321,1724113846198,-1246.82,0.00010983,2]
[335326322,1724113846209,-645.4,0.00010983,2]
[335326323,1724113846219,-814.83,0.00010983,2]
[335326324,1724113846230,-2429.9,0.00010983,2]
[335326325,1724113846239,-1073.87,0.00010983,2]
[335326326,1724113846248,-500.0,0.00010983,2]
[335326327,1724113846258,-568.06,0.00010983,2]
[335326328,1724113846267,-962.69,0.00010983,2]
[335326329,1724113846276,-563.94,0.00010983,2]
[335326330,1724113846286,-500.0,0.00010983,2]
[335326331,1724113846295,-579.61,0.00010983,2]
[335326332,1724113846305,-500.0,0.00010983,2]
[335326333,1724113846314,-500.0,0.00010983,2]
[335326334,1724113846324,-1002.66,0.00010983,2]
[335326335,1724113846333,-553.51,0.00010983,2]
[335326336,1724113846342,-500.0,0.00010983,2]
[335326337,1724113846352,-861.37,0.00010983,2]
[335326338,1724113846362,-500.0,0.00010983,2]
[335326339,1724113846372,-500.0,0.00010983,2]
[335326340,1724113846383,-500.0,0.00010983,2]
[335326341,1724113846392,-500.0,0.00010983,2]
[335326342,1724113846401,-529.42,0.00010983,2]
[335326343,1724113846411,-7015.81,0.00010983,2]
[335326344,1724113846420,-1792.09,0.00010983,2]
[335326345,1724113846430,-2185.31,0.00010983,2]
[335326346,1724113846439,-1240.72806019,0.00010983,2]
[335326347,1724113846450,-928.07193981,0.00010983,2]
[335326348,1724113846459,-572.35508158,0.00010983,2]
[335326349,1724113846471,-1314.18491842,0.00010983,2]
[335326350,1724113846480,-457.09747764,0.00010983,2]
[335326351,1724113846491,-305.54252236,0.00010983,2]
[335326352,1724113846500,-1238.04261205,0.00010983,2]
[335326353,1724113846511,-1698.62738795,0.00010983,2]
[335326354,1724113846523,-840.33,0.00010983,2]
[335326355,1724113846533,-268.86008207,0.00010983,2]
[335326357,1724113950015,2876.0004,9.816e-05,2]
[335326358,1724113965547,685.58,8.219e-05,2]
[335326362,1724114267494,250.0,9.877e-05,2]
[335326363,1724114267556,527.68,9.884e-05,2]
[335326364,1724114278815,165.44,9.89e-05,2]
[335326365,1724114426273,681.97,8.219e-05,2]
[335326366,1724114447369,2112.33,9.86e-05,2]
[335326367,1724114455924,776.36,9.855e-05,2]
[335326368,1724114458104,165.33,9.855e-05,2]
[335326371,1724114659617,22081.63008371,9.899e-05,2]
[335326372,1724114728994,250.0,9.846e-05,2]
[335326373,1724114781856,577.85,9.846e-05,2]
[335326376,1724114933650,521.41,9.831e-05,2]
[335326377,1724114945911,164.14,9.851e-05,2]
[335326378,1724114950797,678.34,8.219e-05,2]
[335326414,1724115031961,-1005.66768125,9.909e-05,2]
[335326416,1724115031970,-155.0,9.929e-05,2]
[335326417,1724115031979,-203.97,9.936e-05,2]
[335326419,1724115031989,-1890.59692944,9.943e-05,2]
[335326435,1724115037853,-770.18156741,9.943e-05,2]
[335326436,1724115037866,-373.27392934,9.943e-05,2]
[335326437,1724115037875,-1093.69055681,9.988e-05,2]
[335326438,1724115037886,-323.61057116,9.999e-05,2]
[335326439,1724115037896,-300.0,0.00010096,2]
[335326440,1724115037906,-300.0,0.00010096,2]
[335326441,1724115037916,-155.0,0.00010097,2]
[335326442,1724115037926,-601.21874269,0.00010468,2]
[335326443,1724115037938,-77.12125731,0.00010468,2]
[335326444,1724115037948,-3323.62614735,0.00010675,2]
[335326445,1724115037965,-884.28010879,0.00010675,2]
[335326446,1724115037976,-1602.09374386,0.00010675,2]
[335326447,1724115037985,-234.3002,0.00010675,2]
[335326448,1724115037994,-364.02,0.00010773,2]
[335326449,1724115038004,-150.0,0.00010773,2]
[335326450,1724115038013,-500.0,0.00010774,2]
[335326451,1724115038023,-93.92845916,0.00010774,2]
[335326452,1724115038036,-406.07154084,0.00010774,2]
[335326453,1724115038045,-245.46827625,0.00010774,2]
[335326454,1724115038054,-500.0,0.00010774,2]
[335326455,1724115038063,-715.09,0.00010774,2]
[335326456,1724115038073,-883.16,0.00010774,2]
[335326457,1724115038082,-500.0,0.00010774,2]
[335326458,1724115038091,-500.0,0.00010774,2]
[335326459,1724115038101,-1721.18,0.00010774,2]
[335326460,1724115038110,-760.66,0.00010774,2]
[335326461,1724115038120,-500.0,0.00010774,2]
[335326462,1724115038130,-681.9,0.00010774,2]
[335326464,1724115038140,-500.0,0.00010774,2]
[335326466,1724115038149,-583.1,0.00010774,2]
[335326468,1724115038158,-500.0,0.00010774,2]
[335326470,1724115038167,-104.74834081,0.00010774,2]
[335326472,1724115038179,-395.25165919,0.00010774,2]
[335326474,1724115038188,-500.0,0.00010774,2]
[335326476,1724115038197,-1645.98,0.00010774,2]
[335326478,1724115038207,-846.44,0.00010774,2]
[335326480,1724115038216,-4062.05,0.00010774,2]
[335326482,1724115038225,-500.0,0.00010774,2]
[335326484,1724115038234,-500.0,0.00010774,2]
[335326486,1724115038243,-243.79821033,0.00010774,2]
[335326488,1724115038254,-1381.24087936,0.00010774,2]
[335326492,1724115038283,-3166.04903559,0.00010774,2]
[335326495,1724115038294,-5038.38187472,0.00010774,2]
[335326497,1724115038307,-585.92,0.00010774,2]
[335326499,1724115038316,-500.0,0.00010774,2]
[335326501,1724115038325,-500.0,0.00010774,2]
[335326502,1724115038334,-500.0,0.00010774,2]
[335326505,1724115038342,-752.0,0.00010774,2]
[335326509,1724115038353,-1241.52,0.00010774,2]
[335326512,1724115038362,-2024.68,0.00010774,2]
[335326515,1724115038371,-500.0,0.00010774,2]
[335326518,1724115038381,-500.0,0.00010774,2]
[335326520,1724115038390,-860.02,0.00010774,2]
[335326523,1724115038399,-357.18130892,0.00010774,2]
[335326525,1724115038408,-500.0,0.00010774,2]
[335326527,1724115038417,-500.0,0.00010774,2]
[335326530,1724115038426,-2473.61,0.00010774,2]
[335326533,1724115038435,-11989.66,0.00010774,2]
[335326535,1724115038444,-1892.47,0.00010774,2]
[335326538,1724115038453,-500.0,0.00010774,2]
[335326540,1724115038462,-500.0,0.00010774,2]
[335326542,1724115038472,-5125.92,0.00010774,2]
[335326544,1724115038483,-1721.91,0.00010774,2]
[335326547,1724115038495,-646.02,0.00010774,2]
[335326549,1724115038508,-1124.08,0.00010774,2]
[335326551,1724115038520,-1860.72,0.00010774,2]
[335326552,1724115038533,-10667.67,0.00010774,2]
[335326554,1724115038544,-500.0,0.00010774,2]
[335326556,1724115038555,-505.1,0.00010774,2]
[335326558,1724115038567,-500.0,0.00010774,2]
[335326560,1724115038579,-500.0,0.00010774,2]
[335326562,1724115038590,-500.0,0.00010774,2]
[335326565,1724115038604,-500.0,0.00010774,2]
[335326567,1724115038616,-500.0,0.00010774,2]
[335326569,1724115038627,-500.0,0.00010774,2]
[335326571,1724115038639,-500.0,0.00010774,2]
[335326574,1724115038651,-500.0,0.00010774,2]
[335326576,1724115038664,-649.51,0.00010774,2]
[335326578,1724115038676,-500.0,0.00010774,2]
[335326581,1724115038688,-622.71,0.00010774,2]
[335326583,1724115038700,-555.24689494,0.00010774,2]
[335326585,1724115038711,-330.18515423,0.00010774,2]
[335326588,1724115038722,-2650.49344274,0.00010774,2]
[335326590,1724115038736,-2611.36655726,0.00010774,2]
[335326592,1724115038747,-437.54509053,0.00010774,2]
[335326595,1724115038761,-62.45490947,0.00010774,2]
[335326597,1724115038773,-394.78141388,0.00010774,2]
[335326599,1724115038784,-1950.85,0.00010774,2]
[335326601,1724115038795,-500.0,0.00010774,2]
[335326603,1724115038805,-28.58965997,0.00010774,2]
[335326606,1724115038817,-1147.47034003,0.00010774,2]
[335326608,1724115038828,-500.0,0.00010774,2]
[335326610,1724115038838,-519.59669636,0.00010774,2]
[335326612,1724115038850,-1638.98,0.00010774,2]
[335326614,1724115038862,-1626.6,0.00010774,2]
[335326617,1724115038873,-500.0,0.00010774,2]
[335326619,1724115038884,-500.0,0.00010774,2]
[335326621,1724115038895,-540.2,0.00010774,2]
[335326623,1724115038906,-500.0,0.00010774,2]
[335326625,1724115038918,-2202.51,0.00010774,2]
[335326628,1724115038930,-500.0,0.00010774,2]
[335326630,1724115038942,-2024.73,0.00010774,2]
[335326632,1724115038953,-595.23,0.00010774,2]
[335326634,1724115038963,-2351.95,0.00010774,2]
[335326637,1724115038973,-500.0,0.00010774,2]
[335326639,1724115038983,-4457.88,0.00010774,2]
[335326641,1724115038993,-1336.3,0.00010774,2]
[335326643,1724115039004,-500.0,0.00010774,2]
[335326645,1724115039015,-598.97,0.00010774,2]
[335326647,1724115039026,-500.0,0.00010774,2]
[335326650,1724115039038,-518.48,0.00010774,2]
[335326652,1724115039048,-500.0,0.00010774,2]
[335326654,1724115039057,-4874.54,0.00010774,2]
[335326656,1724115039070,-2689.25,0.00010774,2]
[335326658,1724115039080,-848.36,0.00010774,2]
[335326660,1724115039091,-9864.85,0.00010774,2]
[335326663,1724115039107,-500.0,0.00010774,2]
[335326665,1724115039118,-500.0,0.00010774,2]
[335326667,1724115039127,-884.49,0.00010774,2]
[335326669,1724115039138,-4936.24,0.00010774,2]
[335326671,1724115039148,-1185.35,0.00010774,2]
[335326673,1724115039159,-2150.91,0.00010774,2]
[335326675,1724115039169,-20000.0,0.00010774,2]
[335326678,1724115039181,-183.97398846,0.00010775,2]
[335326680,1724115039192,-500.0,0.00010775,2]
[335326682,1724115039203,-48123.72199574,0.00010775,2]
[335326684,1724115039216,-1768.43667,0.00010775,2]
[335326687,1724115039235,-33278.88494011,0.00010775,2]
[335326775,1724115040077,-29350.56084364,0.00010775,2]
[335326797,1724115040296,-3025.9,0.00010775,2]
[335326799,1724115040313,-840.96512736,0.00010775,2]
[335326804,1724115040356,-3751.56322392,0.00010775,2]
[335326837,1724115040682,-1851.0538942,0.00010775,2]
[335326839,1724115040695,-605.06484465,0.00010775,2]
[335327072,1724115042935,-561.51,0.00010774,2]
[335327074,1724115042944,-2505.85856786,0.00010775,2]
[335327104,1724115043675,-1149.07228572,0.00010775,2]
[335327105,1724115043688,-1559.45168708,0.00010775,2]
[335327106,1724115043700,-273.88727203,0.00010775,2]
[335327107,1724115043712,-814.55264413,0.00010775,2]
[335327108,1724115043726,-367.69336575,0.00010775,2]
[335327109,1724115043738,-6400.89541296,0.00010775,2]
[335327110,1724115043749,-960.96662033,0.00010775,2]
[335327111,1724115043760,-2665.73328001,0.00010775,2]
[335327112,1724115043772,-361.6920653,0.00010775,2]
[335327113,1724115043783,-503.19150413,0.00010775,2]
[335327114,1724115043804,-104840.85375508,0.00010775,2]
[335327115,1724115043814,-1000.0,0.00010775,2]
[335327116,1724115043824,-1000.0,0.000108,2]
[335327117,1724115043834,-150.81,0.00010824,2]
[335327118,1724115043843,-504.45,0.00010833,2]
[335327119,1724115043853,-617.57,0.00010833,2]
[335327120,1724115043863,-500.0,0.00010833,2]
[335327121,1724115043872,-506.07,0.00010833,2]
[335327122,1724115043881,-500.0,0.00010833,2]
[335327123,1724115043891,-552.43,0.00010833,2]
[335327124,1724115043901,-500.0,0.00010833,2]
[335327125,1724115043910,-500.0,0.00010833,2]
[335327126,1724115043920,-500.0,0.00010833,2]
[335327127,1724115043929,-500.0,0.00010833,2]
[335327128,1724115043938,-540.2,0.00010833,2]
[335327129,1724115043947,-500.0,0.00010833,2]
[335327130,1724115043957,-595.23,0.00010833,2]
[335327131,1724115043966,-1336.3,0.00010833,2]
[335327132,1724115043975,-598.97,0.00010833,2]
[335327133,1724115043984,-518.48,0.00010833,2]
[335327134,1724115043995,-848.36,0.00010833,2]
[335327135,1724115044003,-500.0,0.00010833,2]
[335327136,1724115044013,-884.49,0.00010833,2]
[335327137,1724115044021,-500.0,0.00010834,2]
[335327138,1724115044031,-500.0,0.00010834,2]
[335327139,1724115044040,-500.0,0.00010834,2]
[335327140,1724115044050,-715.09,0.00010834,2]
[335327141,1724115044059,-883.16,0.00010834,2]
[335327142,1724115044069,-500.0,0.00010834,2]
[335327143,1724115044078,-500.0,0.00010834,2]
[335327144,1724115044088,-1721.18,0.00010834,2]
[335327145,1724115044097,-760.66,0.00010834,2]
[335327146,1724115044109,-500.0,0.00010834,2]
[335327147,1724115044119,-681.9,0.00010834,2]
[335327148,1724115044128,-500.0,0.00010834,2]
[335327149,1724115044138,-583.1,0.00010834,2]
[335327150,1724115044147,-500.0,0.00010834,2]
[335327151,1724115044157,-500.0,0.00010834,2]
[335327152,1724115044167,-500.0,0.00010834,2]
[335327153,1724115044176,-1645.98,0.00010834,2]
[335327154,1724115044185,-846.44,0.00010834,2]
[335327155,1724115044194,-4062.05,0.00010834,2]
[335327156,1724115044203,-500.0,0.00010834,2]
[335327157,1724115044212,-500.0,0.00010834,2]
[335327158,1724115044221,-500.0,0.00010834,2]
[335327159,1724115044231,-322.26241026,0.00010834,2]
[335327160,1724115044240,-9829.47,0.00010834,2]
[335327161,1724115044250,-500.0,0.00010834,2]
[335327162,1724115044258,-500.0,0.00010834,2]
[335327163,1724115044268,-500.0,0.00010834,2]
[335327164,1724115044277,-500.0,0.00010834,2]
[335327165,1724115044286,-752.0,0.00010834,2]
[335327166,1724115044295,-1241.52,0.00010834,2]
[335327167,1724115044308,-752.0,0.00010834,2]
[335327168,1724115044317,-1241.52,0.00010834,2]
[335327169,1724115044326,-2024.68,0.00010834,2]
[335327170,1724115044335,-500.0,0.00010834,2]
[335327171,1724115044345,-500.0,0.00010834,2]
[335327172,1724115044356,-860.02,0.00010834,2]
[335327173,1724115044366,-860.02,0.00010834,2]
[335327174,1724115044375,-500.0,0.00010834,2]
[335327175,1724115044387,-500.0,0.00010834,2]
[335327176,1724115044396,-2473.61,0.00010834,2]
[335327177,1724115044405,-11989.66,0.00010834,2]
[335327178,1724115044415,-1892.47,0.00010834,2]
[335327179,1724115044424,-1892.47,0.00010834,2]
[335327180,1724115044434,-500.0,0.00010834,2]
[335327181,1724115044443,-500.0,0.00010834,2]
[335327182,1724115044452,-5125.92,0.00010834,2]
[335327183,1724115044461,-5125.92,0.00010834,2]
[335327184,1724115044470,-1721.91,0.00010834,2]
[335327185,1724115044480,-646.02,0.00010834,2]
[335327186,1724115044489,-646.02,0.00010834,2]
[335327187,1724115044498,-1124.08,0.00010834,2]
[335327188,1724115044508,-1860.72,0.00010834,2]
[335327189,1724115044517,-1860.72,0.00010834,2]
[335327190,1724115044527,-10667.67,0.00010834,2]
[335327191,1724115044537,-500.0,0.00010834,2]
[335327192,1724115044546,-500.0,0.00010834,2]
[335327193,1724115044556,-505.1,0.00010834,2]
[335327194,1724115044566,-500.0,0.00010834,2]
[335327195,1724115044576,-505.1,0.00010834,2]
[335327196,1724115044586,-500.0,0.00010834,2]
[335327197,1724115044596,-500.0,0.00010834,2]
[335327198,1724115044608,-500.0,0.00010834,2]
[335327199,1724115044617,-500.0,0.00010834,2]
[335327200,1724115044627,-500.0,0.00010834,2]
[335327201,1724115044637,-500.0,0.00010834,2]
[335327202,1724115044647,-500.0,0.00010834,2]
[335327203,1724115044657,-500.0,0.00010834,2]
[335327204,1724115044667,-649.51,0.00010834,2]
[335327205,1724115044677,-500.0,0.00010834,2]
[335327206,1724115044686,-622.71,0.00010834,2]
[335327207,1724115044696,-622.71,0.00010834,2]
[335327208,1724115044706,-5261.86,0.00010834,2]
[335327209,1724115044716,-5261.86,0.00010834,2]
[335327210,1724115044725,-500.0,0.00010834,2]
[335327211,1724115044735,-1950.85,0.00010834,2]
[335327212,1724115044745,-1950.85,0.00010834,2]
[335327213,1724115044755,-500.0,0.00010834,2]
[335327214,1724115044765,-1176.06,0.00010834,2]
[335327215,1724115044774,-1176.06,0.00010834,2]
[335327216,1724115044783,-500.0,0.00010834,2]
[335327217,1724115044793,-1638.98,0.00010834,2]
[335327218,1724115044802,-1638.98,0.00010834,2]
[335327219,1724115044811,-1626.6,0.00010834,2]
[335327220,1724115044821,-1626.6,0.00010834,2]
[335327221,1724115044831,-500.0,0.00010834,2]
[335327222,1724115044840,-500.0,0.00010834,2]
[335327223,1724115044850,-540.2,0.00010834,2]
[335327224,1724115044859,-194.31,0.00010834,2]
[335327225,1724115044868,-2202.51,0.00010834,2]
[335327226,1724115044878,-2202.51,0.00010834,2]
[335327227,1724115044887,-2024.73,0.00010834,2]
[335327228,1724115044896,-500.0,0.00010834,2]
[335327229,1724115044905,-2024.73,0.00010834,2]
[335327230,1724115044914,-595.23,0.00010834,2]
[335327231,1724115044924,-2351.95,0.00010834,2]
[335327232,1724115044933,-2351.95,0.00010834,2]
[335327233,1724115044943,-500.0,0.00010834,2]
[335327234,1724115044952,-4457.88,0.00010834,2]
[335327235,1724115044961,-4457.88,0.00010834,2]
[335327236,1724115044970,-1336.3,0.00010834,2]
[335327237,1724115044979,-500.0,0.00010834,2]
[335327238,1724115044988,-500.0,0.00010834,2]
[335327239,1724115044997,-598.97,0.00010834,2]
[335327240,1724115045007,-500.0,0.00010834,2]
[335327241,1724115045016,-518.48,0.00010834,2]
[335327242,1724115045025,-500.0,0.00010834,2]
[335327243,1724115045034,-4874.54,0.00010834,2]
[335327244,1724115045043,-4874.54,0.00010834,2]
[335327245,1724115045052,-2689.25,0.00010834,2]
[335327246,1724115045062,-2689.25,0.00010834,2]
[335327247,1724115045071,-848.36,0.00010834,2]
[335327248,1724115045081,-9864.85,0.00010834,2]
[335327249,1724115045090,-9864.85,0.00010834,2]
[335327250,1724115045101,-500.0,0.00010834,2]
[335327251,1724115045110,-500.0,0.00010834,2]
[335327252,1724115045120,-884.49,0.00010834,2]
[335327253,1724115045129,-1185.35,0.00010834,2]
[335327254,1724115045139,-4936.24,0.00010834,2]
[335327255,1724115045148,-1185.35,0.00010834,2]
[335327256,1724115045158,-4936.24,0.00010834,2]
[335327257,1724115045167,-2150.91,0.00010834,2]
[335327258,1724115045176,-41053.86383407,0.00010835,2]
[335327259,1724115045190,-382.12258582,0.00010835,2]
[335327260,1724115045202,-841.5247125,0.00010835,2]
[335327261,1724115045216,-922.5063449,0.00010835,2]
[335327262,1724115045227,-4526.756931,0.00010835,2]
[335327263,1724115045238,-752.79796392,0.00010835,2]
[335327264,1724115045250,-6063.13728579,0.00010835,2]
[335327265,1724115045268,-375.04037718,0.00010833,2]
[335327266,1724115045280,-186.46962282,0.00010833,2]
[335327267,1724115045289,-400.31937618,0.00010835,2]
[335327268,1724115045303,-1732.275,0.00010835,2]
[335327269,1724115045315,-11351.42744674,0.00010835,2]
[335327270,1724115045326,-8632.87567252,0.00010835,2]
[335327273,1724115045926,-277.38,0.00010834,2]
[335327274,1724115045937,-284.13,0.00010834,2]
[335327275,1724115045947,-252.53783927,0.00010835,2]
[335327276,1724115045959,-984.10336364,0.00010835,2]
[335327277,1724115045969,-1222.58142477,0.00010835,2]
[335327278,1724115045981,-11282.35319939,0.00010835,2]
[335327279,1724115045992,-2886.749998,0.00010835,2]
[335327280,1724115046003,-300.16333141,0.00010835,2]
[335327281,1724115046014,-665.03216072,0.00010835,2]
[335327282,1724115046025,-36013.82117405,0.00010835,2]
[335327283,1724115046036,-309.63730958,0.00010835,2]
[335327284,1724115046048,-1494.82037085,0.00010835,2]
[335327285,1724115046060,-3407.63288819,0.00010835,2]
[335327286,1724115046070,-2009.13156047,0.00010835,2]
[335327287,1724115046082,-2654.94895016,0.00010835,2]
[335327288,1724115046102,-2127.62018939,0.00010835,2]
[335327289,1724115046113,-21827.46558801,0.00010835,2]
[335327290,1724115046124,-7806.3,0.00010835,2]
[335327291,1724115046136,-900.09,0.00010835,2]
[335327292,1724115046147,-5966.55757461,0.00010835,2]
[335327293,1724115046163,-1079.36668129,0.00010835,2]
[335327294,1724115046175,-718.1047832,0.00010835,2]
[335327295,1724115046186,-305.12837395,0.00010835,2]
[335327296,1724115046197,-665.52023222,0.00010835,2]
[335327297,1724115046208,-631.37538617,0.00010835,2]
[335327298,1724115046219,-50693.75116786,0.00010835,2]
[335327299,1724115046231,-692.4468,0.00010835,2]
[335327300,1724115046242,-1250.89981912,0.00010835,2]
[335327301,1724115046253,-283.51720375,0.00010835,2]
[335327302,1724115046264,-1346.35809449,0.00010835,2]
[335327303,1724115046275,-8027.63642451,0.00010835,2]
[335327304,1724115046286,-1661.36023817,0.00010835,2]
[335327305,1724115046307,-450.0,0.00010835,2]
[335327307,1724115046318,-898.99522388,0.00010835,2]
[335327308,1724115046329,-356.88365472,0.00010835,2]
[335327310,1724115046340,-416.5696332,0.00010835,2]
[335327311,1724115046353,-361.43277495,0.00010835,2]
[335327312,1724115171814,637.956817,9.893e-05,2]
[335327316,1724115189072,250.0,9.85e-05,2]
[335327317,1724115251346,537.72,9.841e-05,2]
[335327318,1724115256417,6381.48399959,9.899e-05,2]
[335327319,1724115294629,2517.61714137,9.899e-05,2]
[335327320,1724115296728,3758.45775509,9.899e-05,2]
[335327321,1724115342996,166.93743819,9.899e-05,2]
[335327322,1724115358595,155.0,9.899e-05,2]
[335327323,1724115365822,155.0,9.899e-05,2]
[335327324,1724115395702,523.02806141,9.899e-05,2]
[335327325,1724115428305,671.03,8.219e-05,2]
[335327326,1724115438668,260.7,9.843e-05,2]
[335327327,1724115505605,172.33,9.796e-05,2]
[335327334,1724115633829,14792.6,9.737e-05,2]
[335327348,1724115735698,569.82,9.732e-05,2]
[335327357,1724115897297,307.7,9.712e-05,2]
[335327358,1724115925116,150.0,9.74e-05,2]
[335327359,1724115956760,667.29,8.219e-05,2]
[335327360,1724115983022,197.64,9.754e-05,2]
[335327387,1724116215504,2526.479115,9.86e-05,2]
[335327388,1724116229154,277.971168,9.899e-05,2]
[335327413,1724116232059,-300.0,9.999e-05,2]
[335327414,1724116232068,-97.7418011,9.999e-05,2]
[335327415,1724116232080,-202.2581989,9.999e-05,2]
[335327416,1724116232089,-826.81933257,0.0001,2]
[335327417,1724116232108,-15.22195752,0.0001,2]
[335327418,1724116232117,-155.0,0.0001,2]
[335327419,1724116232126,-1050.0,0.0001,2]
[335327420,1724116232135,-158.99351333,0.0001,2]
[335327421,1724116232145,-70.78452915,0.000101,3]
[335327422,1724116232156,-229.21547085,0.000101,3]
[335327423,1724116232166,-412.21795394,0.000102,3]
[335327424,1724116232183,-187.78204606,0.000102,3]
[335327425,1724116232193,-208.79,0.00010208,2]
[335327426,1724116232202,-178.27,0.00010212,2]
[335327427,1724116232211,-900.0,0.000103,3]
[335327428,1724116232220,-1200.0,0.000104,3]
[335327429,1724116232229,-569.71237349,0.000104,2]
[335327430,1724116232245,-920.99457432,0.000104,2]
[335327431,1724116232256,-4328.63305219,0.000104,2]
[335327432,1724116232266,-667.29,0.00010464,2]
[335327433,1724116232276,-150.99,0.00010464,2]
[335327434,1724116232286,-236.36084557,0.00010467,2]
[335327435,1724116232295,-1252.84348068,0.00010468,2]
[335327436,1724116232307,-415.57651932,0.00010468,2]
[335327437,1724116232316,-50.07468707,0.00010468,2]
[335327438,1724116232329,-449.91531293,0.00010468,2]
[335327439,1724116232338,-55.47084286,0.00010468,2]
[335327440,1724116232350,-244.51915714,0.00010468,2]
[335327441,1724116232360,-1500.0,0.000105,3]
[335327442,1724116232370,-568.33,0.000106,2]
[335327443,1724116232380,-300.0,0.000106,3]
[335327445,1724116232389,-158.99351332,0.0001064,2]
[335327446,1724116232399,-150.0,0.00010674,2]
[335327447,1724116232408,-500.0,0.00010675,2]
[335327448,1724116232418,-300.0,0.000107,3]
[335327449,1724116232427,-591.50226211,0.00010713,2]
[335327450,1724116232443,-4959.74042037,0.00010713,2]
[335327451,1724116232453,-1515.07038,0.0001073,2]
[335327452,1724116232462,-6890.8938,0.00010733,2]
[335327453,1724116232472,-10930.09539963,0.00010733,2]
[335327454,1724116232484,-28258.48250037,0.00010733,2]
[335327455,1724116232494,-100000.0,0.00010733,2]
[335327456,1724116232504,-7500.0,0.00010734,2]
[335327457,1724116232513,-35611.3211,0.00010739,2]
[335327458,1724116232522,-297.94,0.0001074,2]
[335327459,1724116232532,-500.0,0.00010774,2]
[335327460,1724116232541,-500.0,0.00010774,2]
[335327461,1724116232551,-412.16476721,0.00010774,2]